[Event "Titled Tuesday Blitz June 6 Late 2023"]
[White "Adewumi, Tanitoluwa"]
[Black "Rustemov, Alexander"]
[WhiteFideId "30966396"]
[BlackFideId "4119002"]
[WhiteElo "2621"]
[BlackElo "2833"]
[Result "0-1"]
[Round "9"]
[TimeControl "180+2"]
[Date "2023.06.07"]
[WhiteClock "0:00:01"]
[BlackClock "0:00:06"]
[Board "28"]

1. e4 {[%clk 0:03:00]}  e6 {[%clk 0:03:00]} 2. d4 {[%clk 0:03:00]}  d5 {[%clk 0:03:01]} 3. exd5 {[%clk 0:03:01]}  exd5 {[%clk 0:03:01]} 4. Nf3 {[%clk 0:03:02]}  Bf5 {[%clk 0:03:01]} 5. Bd3 {[%clk 0:03:01]}  Bxd3 {[%clk 0:03:01]} 6. Qxd3 {[%clk 0:03:02]}  Nc6 {[%clk 0:03:02]} 7. Nc3 {[%clk 0:03:03]}  Bb4 {[%clk 0:02:58]} 8. O-O {[%clk 0:03:01]}  Nge7 {[%clk 0:02:59]} 9. Bf4 {[%clk 0:02:46]}  Bxc3 {[%clk 0:02:56]} 10. bxc3 {[%clk 0:02:44]}  Na5 {[%clk 0:02:41]} 11. Rfe1 {[%clk 0:02:38]}  O-O {[%clk 0:02:32]} 12. h4 {[%clk 0:01:54]}  Nc4 {[%clk 0:02:26]} 13. Ng5 {[%clk 0:01:50]}  Ng6 {[%clk 0:02:24]} 14. h5 {[%clk 0:01:43]}  h6 {[%clk 0:02:13]} 15. hxg6 {[%clk 0:01:40]}  hxg5 {[%clk 0:02:13]} 16. gxf7+ {[%clk 0:01:12]}  Rxf7 {[%clk 0:02:14]} 17. Bg3 {[%clk 0:01:12]}  Qf6 {[%clk 0:02:11]} 18. Re2 {[%clk 0:01:07]}  Re7 {[%clk 0:02:06]} 19. Rae1 {[%clk 0:01:03]}  Rae8 {[%clk 0:02:05]} 20. Rxe7 {[%clk 0:00:49]}  Rxe7 {[%clk 0:02:05]} 21. Rxe7 {[%clk 0:00:49]}  Qxe7 {[%clk 0:02:06]} 22. Qf5 {[%clk 0:00:48]}  c6 {[%clk 0:02:00]} 23. Be5 {[%clk 0:00:38]}  Nb6 {[%clk 0:01:37]} 24. Qg6 {[%clk 0:00:17]}  Nd7 {[%clk 0:01:35]} 25. Bd6 {[%clk 0:00:16]}  Qe1+ {[%clk 0:01:23]} 26. Kh2 {[%clk 0:00:16]}  Qxf2 {[%clk 0:01:12]} 27. Qxg5 {[%clk 0:00:16]}  Qf6 {[%clk 0:00:55]} 28. Qg3 {[%clk 0:00:16]}  Qh6+ {[%clk 0:00:51]} 29. Kg1 {[%clk 0:00:16]}  Nf6 {[%clk 0:00:51]} 30. Be5 {[%clk 0:00:17]}  Ne4 {[%clk 0:00:50]} 31. Qg4 {[%clk 0:00:17]}  b5 {[%clk 0:00:38]} 32. Qc8+ {[%clk 0:00:14]}  Kh7 {[%clk 0:00:37]} 33. Qf5+ {[%clk 0:00:14]}  Qg6 {[%clk 0:00:32]} 34. Qh3+ {[%clk 0:00:14]}  Kg8 {[%clk 0:00:32]} 35. Qc8+ {[%clk 0:00:14]}  Kf7 {[%clk 0:00:31]} 36. Qd7+ {[%clk 0:00:12]}  Kf8 {[%clk 0:00:29]} 37. Qd8+ {[%clk 0:00:04]}  Qe8 {[%clk 0:00:29]} 38. Bxg7+ {[%clk 0:00:04]}  Kf7 {[%clk 0:00:30]} 39. Qc7+ {[%clk 0:00:04]}  Qe7 {[%clk 0:00:27]} 40. Qxe7+ {[%clk 0:00:02]}  Kxe7 {[%clk 0:00:27]} 41. Be5 {[%clk 0:00:01]}  Nxc3 {[%clk 0:00:27]} 42. a3 {[%clk 0:00:01]}  Nb1 {[%clk 0:00:27]} 43. g4 {[%clk 0:00:01]}  Nxa3 {[%clk 0:00:26]} 44. g5 {[%clk 0:00:02]}  Nxc2 {[%clk 0:00:21]} 45. Kf2 {[%clk 0:00:02]}  Kf7 {[%clk 0:00:13]} 46. Kf3 {[%clk 0:00:02]}  Na3 {[%clk 0:00:12]} 47. Kf4 {[%clk 0:00:01]}  Kg6 {[%clk 0:00:06]} 48. Kf3 {[%clk 0:00:01]}  Nc4 {[%clk 0:00:06]} 0-1


[Site "https://www.chess.com"]

[Event "Titled Tuesday Blitz June 6 Late 2023"]
[White "Pakleza, Zbigniew"]
[Black "Vlassov, Nikolai"]
[WhiteFideId "1119290"]
[BlackFideId "4103360"]
[WhiteElo "2410"]
[BlackElo "2324"]
[Result "1/2-1/2"]
[Round "9"]
[TimeControl "180+2"]
[Date "2023.06.07"]
[WhiteClock "0:00:01"]
[BlackClock "0:00:06"]
[Board "31"]

1. d4 {[%clk 0:03:00]}  Nf6 {[%clk 0:02:59]} 2. Nf3 {[%clk 0:03:01]}  e6 {[%clk 0:02:59]} 3. Bf4 {[%clk 0:03:01]}  c5 {[%clk 0:02:59]} 4. c3 {[%clk 0:03:01]}  b6 {[%clk 0:02:59]} 5. e3 {[%clk 0:03:01]}  Bb7 {[%clk 0:02:59]} 6. h3 {[%clk 0:03:02]}  Be7 {[%clk 0:03:00]} 7. Nbd2 {[%clk 0:03:02]}  h6 {[%clk 0:03:00]} 8. Bd3 {[%clk 0:03:03]}  d6 {[%clk 0:02:59]} 9. Qe2 {[%clk 0:03:02]}  Nbd7 {[%clk 0:02:59]} 10. Bh2 {[%clk 0:03:02]}  Qc7 {[%clk 0:02:58]} 11. e4 {[%clk 0:02:58]}  g5 {[%clk 0:02:42]} 12. e5 {[%clk 0:02:49]}  Nd5 {[%clk 0:02:18]} 13. Nc4 {[%clk 0:02:25]}  Nf4 {[%clk 0:02:02]} 14. Bxf4 {[%clk 0:02:23]}  gxf4 {[%clk 0:02:02]} 15. exd6 {[%clk 0:02:03]}  Bxd6 {[%clk 0:02:02]} 16. Be4 {[%clk 0:02:03]}  O-O-O {[%clk 0:01:51]} 17. Bxb7+ {[%clk 0:01:41]}  Kxb7 {[%clk 0:01:51]} 18. O-O-O {[%clk 0:01:40]}  cxd4 {[%clk 0:01:27]} 19. Nxd6+ {[%clk 0:01:32]}  Qxd6 {[%clk 0:01:26]} 20. Rxd4 {[%clk 0:01:32]}  Qc7 {[%clk 0:01:17]} 21. Rhd1 {[%clk 0:00:55]}  Nc5 {[%clk 0:01:14]} 22. Ne5 {[%clk 0:00:47]}  Rxd4 {[%clk 0:01:04]} 23. Rxd4 {[%clk 0:00:47]}  f6 {[%clk 0:01:03]} 24. Qf3+ {[%clk 0:00:44]}  Kb8 {[%clk 0:00:44]} 25. Ng6 {[%clk 0:00:16]}  Rd8 {[%clk 0:00:42]} 26. Rxd8+ {[%clk 0:00:10]}  Qxd8 {[%clk 0:00:42]} 27. Qxf4+ {[%clk 0:00:10]}  e5 {[%clk 0:00:42]} 28. Qe3 {[%clk 0:00:07]}  Qd3 {[%clk 0:00:40]} 29. Qxd3 {[%clk 0:00:03]}  Nxd3+ {[%clk 0:00:40]} 30. Kd2 {[%clk 0:00:03]}  Nxf2 {[%clk 0:00:40]} 31. Nh4 {[%clk 0:00:01]}  Ne4+ {[%clk 0:00:38]} 32. Ke3 {[%clk 0:00:02]}  Nd6 {[%clk 0:00:38]} 33. g4 {[%clk 0:00:02]}  Kc7 {[%clk 0:00:33]} 34. b3 {[%clk 0:00:02]}  Kc6 {[%clk 0:00:30]} 35. Kd3 {[%clk 0:00:02]}  b5 {[%clk 0:00:27]} 36. a3 {[%clk 0:00:02]}  a5 {[%clk 0:00:27]} 37. Ke3 {[%clk 0:00:02]}  Kd5 {[%clk 0:00:27]} 38. Kd3 {[%clk 0:00:02]}  a4 {[%clk 0:00:26]} 39. bxa4 {[%clk 0:00:02]}  bxa4 {[%clk 0:00:27]} 40. Kd2 {[%clk 0:00:01]}  Nc4+ {[%clk 0:00:27]} 41. Kd3 {[%clk 0:00:01]}  Nxa3 {[%clk 0:00:23]} 42. Nf5 {[%clk 0:00:01]}  Nc4 {[%clk 0:00:22]} 43. Kc2 {[%clk 0:00:01]}  Ke6 {[%clk 0:00:15]} 44. Nxh6 {[%clk 0:00:01]}  Ne3+ {[%clk 0:00:15]} 45. Kb2 {[%clk 0:00:01]}  Ng2 {[%clk 0:00:15]} 46. Nf5 {[%clk 0:00:01]}  e4 {[%clk 0:00:15]} 47. Ka3 {[%clk 0:00:01]}  e3 {[%clk 0:00:15]} 48. Kxa4 {[%clk 0:00:02]}  e2 {[%clk 0:00:15]} 49. Nd4+ {[%clk 0:00:02]}  Kd5 {[%clk 0:00:15]} 50. Nxe2 {[%clk 0:00:03]}  Kc4 {[%clk 0:00:15]} 51. Ng3 {[%clk 0:00:02]}  Kxc3 {[%clk 0:00:14]} 52. Ne4+ {[%clk 0:00:02]}  Kd4 {[%clk 0:00:15]} 53. Nxf6 {[%clk 0:00:03]}  Ke5 {[%clk 0:00:14]} 54. Nh5 {[%clk 0:00:03]}  Ne3 {[%clk 0:00:12]} 55. Kb4 {[%clk 0:00:03]}  Nd1 {[%clk 0:00:12]} 56. g5 {[%clk 0:00:01]}  Kf5 {[%clk 0:00:11]} 57. h4 {[%clk 0:00:02]}  Nf2 {[%clk 0:00:10]} 58. Ng3+ {[%clk 0:00:02]}  Kg6 {[%clk 0:00:06]} 59. Kc4 {[%clk 0:00:02]}  Nh3 {[%clk 0:00:06]} 60. Kd4 {[%clk 0:00:02]}  Nxg5 {[%clk 0:00:05]} 61. hxg5 {[%clk 0:00:01]}  Kxg5 {[%clk 0:00:06]} 1/2-1/2


[Site "https://www.chess.com"]

[Event "Titled Tuesday Blitz June 6 Late 2023"]
[White "Aldokhin, Ivan"]
[Black "Tejedor Fuente, Enrique"]
[WhiteFideId "24115720"]
[BlackFideId "2299100"]
[WhiteElo "2322"]
[BlackElo "2496"]
[Result "1/2-1/2"]
[Round "9"]
[TimeControl "180+2"]
[Date "2023.06.07"]
[WhiteClock "0:00:08"]
[BlackClock "0:00:07"]
[Board "32"]

1. e4 {[%clk 0:02:55]}  d5 {[%clk 0:02:59]} 2. exd5 {[%clk 0:02:54]}  e6 {[%clk 0:02:59]} 3. dxe6 {[%clk 0:02:54]}  Bxe6 {[%clk 0:02:59]} 4. Nf3 {[%clk 0:02:54]}  Nf6 {[%clk 0:02:59]} 5. Nc3 {[%clk 0:02:54]}  Nc6 {[%clk 0:03:00]} 6. d4 {[%clk 0:02:54]}  Bb4 {[%clk 0:03:00]} 7. Bb5 {[%clk 0:02:42]}  Qd5 {[%clk 0:02:58]} 8. Bxc6+ {[%clk 0:02:34]}  Qxc6 {[%clk 0:02:57]} 9. O-O {[%clk 0:02:25]}  O-O-O {[%clk 0:02:55]} 10. Ne5 {[%clk 0:02:05]}  Qb6 {[%clk 0:02:53]} 11. Be3 {[%clk 0:02:04]}  Bxc3 {[%clk 0:02:30]} 12. bxc3 {[%clk 0:02:04]}  Rhe8 {[%clk 0:02:05]} 13. Qf3 {[%clk 0:01:56]}  Bd5 {[%clk 0:01:58]} 14. Qh3+ {[%clk 0:01:50]}  Qe6 {[%clk 0:01:53]} 15. Qxe6+ {[%clk 0:01:34]}  Bxe6 {[%clk 0:01:54]} 16. c4 {[%clk 0:01:24]}  Bf5 {[%clk 0:01:50]} 17. c3 {[%clk 0:01:14]}  Ng4 {[%clk 0:01:47]} 18. Nxg4 {[%clk 0:01:00]}  Bxg4 {[%clk 0:01:48]} 19. Rfb1 {[%clk 0:00:50]}  b6 {[%clk 0:01:46]} 20. a4 {[%clk 0:00:49]}  Bf5 {[%clk 0:01:43]} 21. Rb4 {[%clk 0:00:46]}  a5 {[%clk 0:01:42]} 22. Rb2 {[%clk 0:00:46]}  Bd3 {[%clk 0:01:40]} 23. c5 {[%clk 0:00:46]}  Re6 {[%clk 0:01:37]} 24. cxb6 {[%clk 0:00:32]}  Rxb6 {[%clk 0:01:29]} 25. Rxb6 {[%clk 0:00:31]}  cxb6 {[%clk 0:01:30]} 26. c4 {[%clk 0:00:27]}  Kc7 {[%clk 0:01:24]} 27. Rc1 {[%clk 0:00:27]}  Bf5 {[%clk 0:01:21]} 28. f3 {[%clk 0:00:24]}  Bd7 {[%clk 0:01:19]} 29. Ra1 {[%clk 0:00:19]}  Re8 {[%clk 0:01:19]} 30. Kf2 {[%clk 0:00:19]}  Bf5 {[%clk 0:01:13]} 31. Ra3 {[%clk 0:00:17]}  h5 {[%clk 0:01:10]} 32. d5 {[%clk 0:00:16]}  Bc2 {[%clk 0:01:00]} 33. Ke2 {[%clk 0:00:15]}  Ra8 {[%clk 0:00:22]} 34. Kd2 {[%clk 0:00:13]}  Bf5 {[%clk 0:00:22]} 35. Rb3 {[%clk 0:00:13]}  Ra6 {[%clk 0:00:23]} 36. Kc3 {[%clk 0:00:12]}  Bd7 {[%clk 0:00:20]} 37. Ra3 {[%clk 0:00:08]}  Ra8 {[%clk 0:00:20]} 38. Kd4 {[%clk 0:00:07]}  f6 {[%clk 0:00:19]} 39. h4 {[%clk 0:00:05]}  Re8 {[%clk 0:00:18]} 40. Bf4+ {[%clk 0:00:03]}  Kb7 {[%clk 0:00:17]} 41. c5 {[%clk 0:00:02]}  bxc5+ {[%clk 0:00:15]} 42. Kxc5 {[%clk 0:00:03]}  Rc8+ {[%clk 0:00:15]} 43. Kd6 {[%clk 0:00:03]}  Be8 {[%clk 0:00:15]} 44. Rb3+ {[%clk 0:00:03]}  Ka8 {[%clk 0:00:14]} 45. Rb6 {[%clk 0:00:02]}  Bxa4 {[%clk 0:00:13]} 46. Ra6+ {[%clk 0:00:03]}  Kb7 {[%clk 0:00:14]} 47. Rxa5 {[%clk 0:00:04]}  Rc4 {[%clk 0:00:12]} 48. Bg3 {[%clk 0:00:03]}  Bd1 {[%clk 0:00:10]} 49. Ke7 {[%clk 0:00:02]}  Ra4 {[%clk 0:00:07]} 50. Rxa4 {[%clk 0:00:02]}  Bxa4 {[%clk 0:00:08]} 51. d6 {[%clk 0:00:03]}  Kc8 {[%clk 0:00:09]} 52. Kf8 {[%clk 0:00:03]}  g5 {[%clk 0:00:07]} 53. Ke7 {[%clk 0:00:04]}  gxh4 {[%clk 0:00:05]} 54. Bxh4 {[%clk 0:00:04]}  f5 {[%clk 0:00:06]} 55. Kf6 {[%clk 0:00:04]}  Kd7 {[%clk 0:00:02]} 56. Bg3 {[%clk 0:00:04]}  Bb5 {[%clk 0:00:02]} 57. Kxf5 {[%clk 0:00:03]}  Bf1 {[%clk 0:00:02]} 58. Kg5 {[%clk 0:00:03]}  Bxg2 {[%clk 0:00:02]} 59. f4 {[%clk 0:00:03]}  Kxd6 {[%clk 0:00:02]} 60. f5+ {[%clk 0:00:04]}  Kd7 {[%clk 0:00:02]} 61. Kxh5 {[%clk 0:00:04]}  Ke8 {[%clk 0:00:03]} 62. Kg6 {[%clk 0:00:04]}  Be4 {[%clk 0:00:03]} 63. Kf6 {[%clk 0:00:05]}  Kf8 {[%clk 0:00:03]} 64. Ke5 {[%clk 0:00:05]}  Bd3 {[%clk 0:00:02]} 65. f6 {[%clk 0:00:05]}  Kf7 {[%clk 0:00:02]} 66. Bf4 {[%clk 0:00:06]}  Bc2 {[%clk 0:00:03]} 67. Be3 {[%clk 0:00:06]}  Bb1 {[%clk 0:00:04]} 68. Bf4 {[%clk 0:00:07]}  Ba2 {[%clk 0:00:04]} 69. Be3 {[%clk 0:00:06]}  Bb3 {[%clk 0:00:05]} 70. Bf4 {[%clk 0:00:06]}  Ba2 {[%clk 0:00:06]} 71. Be3 {[%clk 0:00:07]}  Bb3 {[%clk 0:00:06]} 72. Bf4 {[%clk 0:00:08]}  Ba2 {[%clk 0:00:07]} 1/2-1/2


[Site "https://www.chess.com"]

[Event "Titled Tuesday Blitz June 6 Late 2023"]
[White "Makaraci, Tunahan"]
[Black "Oro, Faustino"]
[WhiteFideId "6356559"]
[BlackFideId "20000197"]
[WhiteElo "2160"]
[BlackElo "1984"]
[Result "0-1"]
[Round "9"]
[TimeControl "180+2"]
[Date "2023.06.07"]
[WhiteClock "0:00:01"]
[BlackClock "0:00:04"]
[Board "33"]

1. e4 {[%clk 0:03:00]}  c5 {[%clk 0:02:57]} 2. c3 {[%clk 0:03:00]}  Nf6 {[%clk 0:02:57]} 3. e5 {[%clk 0:03:00]}  Nd5 {[%clk 0:02:57]} 4. Nf3 {[%clk 0:03:00]}  Nc6 {[%clk 0:02:57]} 5. Bc4 {[%clk 0:02:53]}  Nb6 {[%clk 0:02:55]} 6. Bb3 {[%clk 0:02:54]}  d5 {[%clk 0:02:54]} 7. exd6 {[%clk 0:02:54]}  Qxd6 {[%clk 0:02:54]} 8. O-O {[%clk 0:02:54]}  Be6 {[%clk 0:02:54]} 9. Bxe6 {[%clk 0:02:52]}  Qxe6 {[%clk 0:02:53]} 10. a4 {[%clk 0:02:53]}  Qd7 {[%clk 0:02:51]} 11. a5 {[%clk 0:02:53]}  Nd5 {[%clk 0:02:50]} 12. a6 {[%clk 0:02:53]}  b6 {[%clk 0:02:50]} 13. d4 {[%clk 0:02:53]}  e6 {[%clk 0:02:48]} 14. Na3 {[%clk 0:02:43]}  Be7 {[%clk 0:02:46]} 15. Nc4 {[%clk 0:02:41]}  O-O {[%clk 0:02:45]} 16. Nce5 {[%clk 0:02:41]}  Nxe5 {[%clk 0:02:42]} 17. Nxe5 {[%clk 0:02:42]}  Qc7 {[%clk 0:02:43]} 18. Be3 {[%clk 0:02:36]}  Rfd8 {[%clk 0:02:39]} 19. Qb3 {[%clk 0:02:32]}  Rac8 {[%clk 0:02:20]} 20. h3 {[%clk 0:02:24]}  cxd4 {[%clk 0:02:04]} 21. Bxd4 {[%clk 0:02:21]}  Nf4 {[%clk 0:01:59]} 22. Nf3 {[%clk 0:02:17]}  Bc5 {[%clk 0:01:51]} 23. Rfe1 {[%clk 0:02:10]}  Bxd4 {[%clk 0:01:45]} 24. Nxd4 {[%clk 0:02:08]}  Rd5 {[%clk 0:01:35]} 25. Nf3 {[%clk 0:01:49]}  Rf5 {[%clk 0:01:31]} 26. Rad1 {[%clk 0:01:38]}  Nxh3+ {[%clk 0:01:20]} 27. Kf1 {[%clk 0:01:38]}  Nf4 {[%clk 0:01:10]} 28. Re4 {[%clk 0:01:31]}  h5 {[%clk 0:01:03]} 29. Rdd4 {[%clk 0:01:06]}  Nd5 {[%clk 0:00:44]} 30. Rc4 {[%clk 0:01:05]}  Qd8 {[%clk 0:00:43]} 31. Nd4 {[%clk 0:01:01]}  Rf6 {[%clk 0:00:35]} 32. Rxc8 {[%clk 0:00:58]}  Qxc8 {[%clk 0:00:35]} 33. c4 {[%clk 0:00:57]}  Qxa6 {[%clk 0:00:34]} 34. Nb5 {[%clk 0:00:50]}  Qa1+ {[%clk 0:00:30]} 35. Re1 {[%clk 0:00:50]}  Qa6 {[%clk 0:00:20]} 36. cxd5 {[%clk 0:00:50]}  Rf5 {[%clk 0:00:18]} 37. Rd1 {[%clk 0:00:42]}  Rxd5 {[%clk 0:00:19]} 38. Rxd5 {[%clk 0:00:42]}  exd5 {[%clk 0:00:20]} 39. Qxd5 {[%clk 0:00:42]}  Qa1+ {[%clk 0:00:20]} 40. Ke2 {[%clk 0:00:41]}  Qxb2+ {[%clk 0:00:21]} 41. Kf3 {[%clk 0:00:41]}  Qf6+ {[%clk 0:00:17]} 42. Kg3 {[%clk 0:00:40]}  h4+ {[%clk 0:00:17]} 43. Kh2 {[%clk 0:00:38]}  Qxf2 {[%clk 0:00:16]} 44. Nd6 {[%clk 0:00:30]}  Qg3+ {[%clk 0:00:16]} 45. Kg1 {[%clk 0:00:30]}  Qe3+ {[%clk 0:00:17]} 46. Kh2 {[%clk 0:00:29]}  Qf4+ {[%clk 0:00:17]} 47. Kg1 {[%clk 0:00:29]}  g6 {[%clk 0:00:12]} 48. Ne4 {[%clk 0:00:24]}  a5 {[%clk 0:00:10]} 49. Qd4 {[%clk 0:00:16]}  Qc1+ {[%clk 0:00:08]} 50. Kh2 {[%clk 0:00:16]}  Qc7+ {[%clk 0:00:09]} 51. Kh3 {[%clk 0:00:14]}  b5 {[%clk 0:00:05]} 52. Nf6+ {[%clk 0:00:14]}  Kf8 {[%clk 0:00:05]} 53. Nh7+ {[%clk 0:00:08]}  Ke8 {[%clk 0:00:04]} 54. Nf6+ {[%clk 0:00:06]}  Kf8 {[%clk 0:00:04]} 55. Kxh4 {[%clk 0:00:06]}  Qh2+ {[%clk 0:00:04]} 56. Kg5 {[%clk 0:00:04]}  Qxg2+ {[%clk 0:00:04]} 57. Ng4 {[%clk 0:00:02]}  Qc6 {[%clk 0:00:03]} 58. Qd8+ {[%clk 0:00:01]}  Kg7 {[%clk 0:00:04]} 0-1


[Site "https://www.chess.com"]

[Event "Titled Tuesday Blitz June 6 Late 2023"]
[White "Skvortsov, Andrei"]
[Black "Fiorito, Francisco"]
[WhiteFideId "24108600"]
[BlackFideId "180165"]
[WhiteElo "2259"]
[BlackElo "2319"]
[Result "0-1"]
[Round "9"]
[TimeControl "180+2"]
[Date "2023.06.07"]
[WhiteClock "0:00:13"]
[BlackClock "0:00:52"]
[Board "35"]

1. e4 {[%clk 0:03:00]}  e5 {[%clk 0:02:59]} 2. d4 {[%clk 0:03:00]}  d6 {[%clk 0:02:55]} 3. dxe5 {[%clk 0:02:59]}  dxe5 {[%clk 0:02:56]} 4. Qxd8+ {[%clk 0:02:59]}  Kxd8 {[%clk 0:02:56]} 5. Bc4 {[%clk 0:02:59]}  f6 {[%clk 0:02:57]} 6. Nc3 {[%clk 0:02:38]}  c6 {[%clk 0:02:56]} 7. Nd1 {[%clk 0:02:28]}  b5 {[%clk 0:02:56]} 8. Bb3 {[%clk 0:02:28]}  a5 {[%clk 0:02:57]} 9. a3 {[%clk 0:02:27]}  Kc7 {[%clk 0:02:55]} 10. Ne3 {[%clk 0:02:26]}  Na6 {[%clk 0:02:55]} 11. f3 {[%clk 0:02:25]}  Nc5 {[%clk 0:02:55]} 12. Ba2 {[%clk 0:02:19]}  g6 {[%clk 0:02:54]} 13. Ne2 {[%clk 0:02:18]}  Bd6 {[%clk 0:02:54]} 14. Bd2 {[%clk 0:02:15]}  Ne7 {[%clk 0:02:53]} 15. Nc1 {[%clk 0:02:08]}  h5 {[%clk 0:02:53]} 16. Nd3 {[%clk 0:01:49]}  Rd8 {[%clk 0:02:39]} 17. Nxc5 {[%clk 0:01:44]}  Bxc5 {[%clk 0:02:40]} 18. Ke2 {[%clk 0:01:41]}  Bb6 {[%clk 0:02:37]} 19. Rad1 {[%clk 0:01:40]}  Ba6 {[%clk 0:02:37]} 20. Bc1 {[%clk 0:01:38]}  Rd4 {[%clk 0:02:19]} 21. c3 {[%clk 0:01:23]}  Rxd1 {[%clk 0:02:15]} 22. Kxd1 {[%clk 0:01:19]}  Rd8+ {[%clk 0:02:15]} 23. Kc2 {[%clk 0:01:19]}  a4 {[%clk 0:01:59]} 24. Rd1 {[%clk 0:01:19]}  Rxd1 {[%clk 0:01:57]} 25. Kxd1 {[%clk 0:01:20]}  Bc8 {[%clk 0:01:52]} 26. Bf7 {[%clk 0:01:19]}  h4 {[%clk 0:01:48]} 27. h3 {[%clk 0:01:19]}  Kd6 {[%clk 0:01:38]} 28. Ng4 {[%clk 0:01:17]}  Bxg4 {[%clk 0:01:36]} 29. hxg4 {[%clk 0:01:15]}  g5 {[%clk 0:01:36]} 30. c4 {[%clk 0:01:13]}  Bd4 {[%clk 0:01:34]} 31. cxb5 {[%clk 0:01:11]}  cxb5 {[%clk 0:01:35]} 32. Kc2 {[%clk 0:00:55]}  Nc8 {[%clk 0:01:25]} 33. Be8 {[%clk 0:00:50]}  Na7 {[%clk 0:01:23]} 34. Bd2 {[%clk 0:00:50]}  Bc5 {[%clk 0:01:23]} 35. Bc3 {[%clk 0:00:37]}  Ke7 {[%clk 0:01:20]} 36. Bg6 {[%clk 0:00:37]}  Nc6 {[%clk 0:01:20]} 37. Bf5 {[%clk 0:00:35]}  Bd4 {[%clk 0:01:20]} 38. Bd2 {[%clk 0:00:31]}  Bc5 {[%clk 0:01:17]} 39. Bc8 {[%clk 0:00:31]}  Nd4+ {[%clk 0:01:11]} 40. Kd3 {[%clk 0:00:29]}  Kd6 {[%clk 0:01:09]} 41. Ba6 {[%clk 0:00:20]}  Kc6 {[%clk 0:01:06]} 42. Ba5 {[%clk 0:00:17]}  Nxf3 {[%clk 0:01:03]} 43. Bd8 {[%clk 0:00:13]}  Ne1+ {[%clk 0:00:57]} 44. Ke2 {[%clk 0:00:13]}  Nxg2 {[%clk 0:00:58]} 45. Kf3 {[%clk 0:00:12]}  Ne1+ {[%clk 0:00:54]} 46. Ke2 {[%clk 0:00:13]}  h3 {[%clk 0:00:52]} 0-1


[Site "https://www.chess.com"]

[Event "Titled Tuesday Blitz June 6 Late 2023"]
[White "Sun, Rick"]
[Black "Streltsov, Alexey"]
[WhiteFideId "30909481"]
[BlackFideId "24104434"]
[WhiteElo "2169"]
[BlackElo "2572"]
[Result "1-0"]
[Round "9"]
[TimeControl "180+2"]
[Date "2023.06.07"]
[WhiteClock "0:00:09"]
[BlackClock "0:00:08"]
[Board "36"]

1. e4 {[%clk 0:03:00]}  c6 {[%clk 0:03:00]} 2. d4 {[%clk 0:03:00]}  d5 {[%clk 0:03:01]} 3. f3 {[%clk 0:03:01]}  e6 {[%clk 0:03:01]} 4. Nc3 {[%clk 0:03:01]}  Bb4 {[%clk 0:03:01]} 5. a3 {[%clk 0:03:01]}  Bxc3+ {[%clk 0:03:00]} 6. bxc3 {[%clk 0:03:02]}  dxe4 {[%clk 0:03:01]} 7. Be3 {[%clk 0:03:01]}  Nf6 {[%clk 0:02:59]} 8. Nh3 {[%clk 0:02:46]}  Nbd7 {[%clk 0:02:48]} 9. fxe4 {[%clk 0:02:16]}  Nxe4 {[%clk 0:02:47]} 10. Qg4 {[%clk 0:02:15]}  Nxc3 {[%clk 0:02:36]} 11. Qxg7 {[%clk 0:02:04]}  Qf6 {[%clk 0:02:36]} 12. Qxf6 {[%clk 0:01:47]}  Nxf6 {[%clk 0:02:35]} 13. Bd3 {[%clk 0:01:46]}  Nfd5 {[%clk 0:02:15]} 14. Bd2 {[%clk 0:01:45]}  Bd7 {[%clk 0:01:56]} 15. O-O {[%clk 0:01:38]}  Ke7 {[%clk 0:01:54]} 16. Nf4 {[%clk 0:01:32]}  Nxf4 {[%clk 0:01:51]} 17. Bxf4 {[%clk 0:01:32]}  Nd5 {[%clk 0:01:51]} 18. Bd2 {[%clk 0:01:32]}  b5 {[%clk 0:01:50]} 19. a4 {[%clk 0:01:26]}  a6 {[%clk 0:01:49]} 20. Bc1 {[%clk 0:01:10]}  h5 {[%clk 0:01:32]} 21. c4 {[%clk 0:00:59]}  bxc4 {[%clk 0:01:24]} 22. Ba3+ {[%clk 0:00:59]}  Ke8 {[%clk 0:01:25]} 23. Bxc4 {[%clk 0:00:55]}  Ne3 {[%clk 0:01:20]} 24. Rfc1 {[%clk 0:00:55]}  Nxc4 {[%clk 0:01:20]} 25. Rxc4 {[%clk 0:00:56]}  h4 {[%clk 0:01:16]} 26. Rb1 {[%clk 0:00:52]}  Rh5 {[%clk 0:01:14]} 27. Rb7 {[%clk 0:00:50]}  Rd5 {[%clk 0:01:06]} 28. Bc5 {[%clk 0:00:38]}  f6 {[%clk 0:01:05]} 29. Rc3 {[%clk 0:00:34]}  Kf7 {[%clk 0:01:04]} 30. Rh3 {[%clk 0:00:25]}  Rh8 {[%clk 0:01:05]} 31. Ra7 {[%clk 0:00:25]}  e5 {[%clk 0:01:04]} 32. dxe5 {[%clk 0:00:23]}  fxe5 {[%clk 0:00:48]} 33. Bb6 {[%clk 0:00:17]}  e4 {[%clk 0:00:34]} 34. Re3 {[%clk 0:00:17]}  Re8 {[%clk 0:00:23]} 35. a5 {[%clk 0:00:17]}  Kf6 {[%clk 0:00:20]} 36. Rxa6 {[%clk 0:00:16]}  Rd3 {[%clk 0:00:20]} 37. Ra7 {[%clk 0:00:14]}  Bf5 {[%clk 0:00:13]} 38. Rc7 {[%clk 0:00:12]}  Re5 {[%clk 0:00:12]} 39. Rxc6+ {[%clk 0:00:10]}  Re6 {[%clk 0:00:12]} 40. Rc7 {[%clk 0:00:08]}  Rxe3 {[%clk 0:00:10]} 41. Bxe3 {[%clk 0:00:08]}  Ra6 {[%clk 0:00:10]} 42. Bb6 {[%clk 0:00:08]}  e3 {[%clk 0:00:11]} 43. Kf1 {[%clk 0:00:06]}  Bd3+ {[%clk 0:00:11]} 44. Ke1 {[%clk 0:00:06]}  Ra8 {[%clk 0:00:11]} 45. Rc3 {[%clk 0:00:06]}  Be4 {[%clk 0:00:09]} 46. g3 {[%clk 0:00:05]}  hxg3 {[%clk 0:00:07]} 47. hxg3 {[%clk 0:00:06]}  Bb7 {[%clk 0:00:06]} 48. Rxe3 {[%clk 0:00:07]}  Kf7 {[%clk 0:00:06]} 49. Kf2 {[%clk 0:00:07]}  Re8 {[%clk 0:00:05]} 50. Rc3 {[%clk 0:00:07]}  Re6 {[%clk 0:00:05]} 51. Rc7+ {[%clk 0:00:07]}  Re7 {[%clk 0:00:05]} 52. Rc5 {[%clk 0:00:08]}  Re6 {[%clk 0:00:05]} 53. g4 {[%clk 0:00:06]}  Rf6+ {[%clk 0:00:06]} 54. Kg3 {[%clk 0:00:07]}  Re6 {[%clk 0:00:07]} 55. Kh4 {[%clk 0:00:07]}  Kg6 {[%clk 0:00:08]} 56. Rg5+ {[%clk 0:00:07]}  Kh6 {[%clk 0:00:07]} 57. Rh5+ {[%clk 0:00:07]}  Kg6 {[%clk 0:00:07]} 58. Rc5 {[%clk 0:00:08]}  Kf6 {[%clk 0:00:08]} 59. Rc7 {[%clk 0:00:08]}  Ba6 {[%clk 0:00:08]} 60. Ra7 {[%clk 0:00:08]}  Be2 {[%clk 0:00:09]} 61. Bd4+ {[%clk 0:00:08]}  Kg6 {[%clk 0:00:08]} 62. Rg7+ {[%clk 0:00:08]}  Kh6 {[%clk 0:00:08]} 63. g5# {[%clk 0:00:09]} 1-0


[Site "https://www.chess.com"]